Cogmind - Beta 16 @@@ ROGUE MODE // 2025.10.24 @ 20:48:00 Player: Countzero Result: Destroyed by G-34 Mercenary with Small Laser Performance ------------- Evolutions (0) 0 Regions Visited (1) 200 Robots Destroyed (7) 35 Value Destroyed (228) 228 Prototype IDs (0) 0 Alien Tech Used (0) 0 Bonus (0) 0 TOTAL SCORE: 463 Bonus ------- None Cogmind --------- Core Integrity 0/250 Matter 243/300 Energy 262/350 System Corruption 1% Temperature Warm (164) Movement Rolling (105) Ox1 Location -10/Materials Parts ------- > --- POWER (1) -------- (None) > --- PROPULSION (2) --- Wheel Compact Wheel > --- UTILITY (2) ------ High-capacity Storage Unit High-capacity Battery > --- WEAPON (2) ------- Small Laser Light Assault Rifle > --- INVENTORY (20) --- Weight Redist. System Visual Processing Unit Weapon Shielding Light Assault Rifle Peak State ------------ > --- POWER ------------ Ion Engine > --- PROPULSION ------- Wheel Compact Wheel > --- UTILITY ---------- Small Storage Unit Weight Redist. System > --- WEAPON ----------- Beam Rifle Beam Rifle > --- INVENTORY -------- Light Ion Engine Small Laser Light Assault Rifle Light Assault Rifle [Rating: 10] Favorites ----------- Power Ion Engine Engine Ion Engine Propulsion Compact Wheel Wheel Compact Wheel Utility High-capacity Storage Unit Device Weight Redist. System Storage High-capacity Storage Unit Weapon Beam Rifle Energy Gun Beam Rifle Ballistic Gun Light Assault Rifle Build | -11 -10 ------- Run | Yrd Mat Slots Evolved . | . . Power . | . . Propulsion . | . . Utility . | . . Weapon . | . . Parts Attached 15 | 6 9 Power 2 | 1 1 Engine 2 | 1 1 Core . | . . Reactor . | . . Propulsion 3 | 2 1 Treads . | . . Leg . | . . Wheel 3 | 2 1 Hover . | . . Flight . | . . Utility 4 | 1 3 Device 1 | . 1 Storage 3 | 1 2 Processor . | . . Hackware . | . . Protection . | . . Artifact . | . . Weapon 6 | 2 4 Energy Gun 4 | 1 3 Energy Cannon . | . . Ballistic Gun 2 | 1 1 Ballistic Cannon . | . . Launcher . | . . Special Weapon . | . . Impact Weapon . | . . Slashing Weapon . | . . Piercing Weapon . | . . Special Melee Weapon . | . . Unidentified Prototypes . | . . Parts Lost 6 | . 6 Power 2 | . 2 Propulsion 1 | . 1 Utility . | . . Weapon 3 | . 3 Highest Loss Streak 4 | . 4 To Critical Strikes . | . . Average Backups 5 | 2 5 Power . | . . Propulsion . | . . Utility 1 | . 1 Weapon 2 | . 2 Tool/Special . | . . Unused Backups 2 | . 2 Power . | . . Propulsion . | . . Utility 2 | . 2 Weapon . | . . Tool/Special . | . . Average Slot Usage (%) 94 | . 94 Engine 12 | . 12 Wheel 26 | . 26 Device 5 | . 5 Storage 22 | . 22 Energy Gun 24 | . 24 Ballistic Gun 1 | . 1 Peak Build Rating 10 | 6 10 Average Rating 8 | 3 8 On Entrance 3 | . 6 Avg Prop Armor Cover (%) . | . . Naked Turns . | . . Heaviest Build 55 | 12 55 Greatest Support 38 | 26 38 Greatest Overweight (x) 3 | . 3 Average Overweight (x) . | . . Largest Inventory Capacity 20 | 8 20 Average Capacity 17 | 6 17 Most Carried 7 | 5 7 Average Carried 5 | 2 5 Final Capacity 20 | 8 20 Final Carried 4 | 2 4 Class Distribution -------------------- 100% | Mutant Dominant Class ---------------- Mutant | -10/Materials Resources | -11 -10 ----------- Run | Yrd Mat Matter Collected 356 | 255 101 Remotely . | . . Salvage Created 282 | . 282 Parts 12 | . 12 Haulers Intercepted . | . . Recyclers Shooed . | . . Parts Field Recycled . | . . Retrieved Matter . | . . Parts Self-Destructed . | . . Prevented . | . . Parts Restored . | . . Kills | -11 -10 ------- Run | Yrd Mat Combat Hostiles Destroyed 5 | . 5 Guns 4 | . 4 Classes Destroyed 3 | . 3 Recycler 1 | . 1 Watcher 1 | . 1 Grunt 5 | . 5 Best Kill Streak 2 | . 2 Combat Bots Only 2 | . 2 Max Kills in Single Turn 1 | . 1 Gunslinging . | . . Exploded . | . . Melee . | . . Uniques/NPCs Destroyed . | . . Combat | -11 -10 -------- Run | Yrd Mat Hostile Shots Fired 86 | . 86 Missed 20 | . 20 Hits 66 | . 66 Projectile 66 | . 66 Critical Strikes 1 | . 1 Damage Taken 848 | . 848 Core 252 | . 252 Absorbed by Shields . | . . Core Remaining (%) 100 | 100 . Volleys Fired 40 | 1 39 Largest 2 | 2 2 Hottest 121 | 60 121 Shots Fired 66 | 2 64 Gun 66 | 2 64 Cannon . | . . Launcher . | . . Special . | . . Kinetic 2 | 1 1 Thermal 64 | 1 63 Explosive . | . . Electromagnetic . | . . Robot Hit Streak 7 | . 7 Robot Miss Streak 4 | . 4 Penetration Max . | . . Secondary Targets . | . . Shots Hit Robots 43 | . 43 Core Hits 15 | . 15 Critical Kills . | . . Critical Parts Destroyed . | . . Critical Strikes 3 | . 3 Burn 3 | . 3 Melee Attacks . | . . Impact . | . . Slashing . | . . Piercing . | . . Sneak Attacks . | . . Combat Hostiles . | . . Follow-up Attacks . | . . Damage Inflicted 649 | . 649 Guns 649 | . 649 Cannons . | . . Explosions . | . . Melee . | . . Ramming . | . . Kinetic 8 | . 8 Thermal 641 | . 641 Explosive . | . . Electromagnetic . | . . Impact . | . . Slashing . | . . Piercing . | . . Highest Corruption 1 | . 1 Average Corruption 1 | . 1 Corruption Purged . | . . Corruption Blocked . | . . Effects 4 | . 4 Message Errors 2 | . 2 Matter Fused 1 | . 1 Heat Flow Errors 1 | . 1 Overload Shots . | . . Overflow Damage . | . . Projectiles . | . . Explosions . | . . Melee . | . . Knockbacks . | . . Impact . | . . Kinetic . | . . Secondary . | . . Self-Inflicted Damage . | . . Shots . | . . Rammed . | . . Targets Rammed . | . . Kicked . | . . Crushed . | . . Highest Temperature 409 | 20 409 Average Temperature 199 | 15 201 Received Heat Transfer 504 | . 504 Effects 9 | . 9 Shutdowns 2 | . 2 Energy Bleed 3 | . 3 Matter Decay 1 | . 1 Short Circuit 2 | . 2 Damage (minor) 1 | . 1 Siege Activations . | . . Martial Activations . | . . Shielding Activations . | . . Robots Disrupted . | . . Combat Hostiles . | . . Robots Corrupted . | . . Combat Hostiles . | . . Parts Fried . | . . Impact Corruptions . | . . Robots Melted 1 | . 1 Combat Hostiles 1 | . 1 Parts Melted 1 | . 1 Heat Transferred 1801 | . 1801 Parts Sabotaged . | . . Parts Stolen . | . . Parts Stripped . | . . Power Chain Reactions . | . . Alert | -11 -10 ------- Run | Yrd Mat Maximum Alert Level . | . . Low Security (%) 100 | 100 100 Level 1 . | . . Level 2 . | . . Level 3 . | . . Level 4 . | . . Level 5 . | . . High Security . | . . Max Security . | . . Peak Influence 63 | . 63 Initial . | . . Average 16 | . 18 Influence Increases 167 | . 167 Destroy 0b10 Robot/C 100 | . 100 Destroy 0b10 Robot/NC 10 | . 10 Destroy Leader 22 | . 22 Successful Hack 4 | . 4 Disable Machine 15 | . 15 Destroy Structure 1 | . 1 Lose Combat Pursuer 15 | . 15 Influence Decreases 167 | . 167 Time Decay 118 | . 118 Lost Part 49 | . 49 Squads Dispatched . | . . Investigation . | . . Extermination . | . . Reinforcement . | . . Assault . | . . Garrison . | . . Intercept . | . . Searches Triggered . | . . Construction Impeded . | . . Haulers Reinforced . | . . Active Scanning Responses . | . . Cargo Convoy Interrupts . | . . Stealth | -11 -10 --------- Run | Yrd Mat Distress Signals 1 | . 1 Communications Jammed . | . . Distress Signals . | . . Times Spotted 13 | . 13 Peak Tracking Total 5 | . 5 Tactical Retreats 1 | . 1 Traps | -11 -10 ------- Run | Yrd Mat Traps Triggered 1 | . 1 Indirectly . | . . Trap Hack Attempts . | . . Triggered . | . . Disarmed . | . . Reprogrammed . | . . Reused . | . . Traps Extracted . | . . Installed . | . . Triggered . | . . Machines | -11 -10 ---------- Run | Yrd Mat Machines Disabled 1 | . 1 Max in Single Turn 1 | . 1 Machines Repaired . | . . Machines Dismantled . | . . Machines Sabotaged . | . . Overloaded Fab Kills . | . . Hacking | -11 -10 --------- Run | Yrd Mat Machines Accessed 3 | . 3 Terminals 3 | . 3 Fabricators . | . . Repair Stations . | . . Recycling Units . | . . Scanalyzers . | . . Garrison Access . | . . Total Hacks 15 | . 15 Successful 6 | . 6 Failed 9 | . 9 Catastrophic . | . . Database Lockouts . | . . Manual . | . . Terminals 15 | . 15 Fabricators . | . . Repair Stations . | . . Recycling Units . | . . Scanalyzers . | . . Garrison Access . | . . Terminal Hacks 6 | . 6 Record 2 | . 2 Alert Level 1 | . 1 Locate Traps 1 | . 1 Dispatch Records 1 | . 1 Transport Status 1 | . 1 Fabricator Hacks . | . . Repair Station Hacks . | . . Recycling Unit Hacks . | . . Scanalyzer . | . . Garrison Access Hacks . | . . Unauthorized Hacks . | . . Terminals . | . . Fabricators . | . . Repair Stations . | . . Recycling Units . | . . Scanalyzers . | . . Garrison Access . | . . Data Cores Recovered . | . . Used . | . . Hacking Detections 3 | . 3 Full Trace Events 2 | . 2 Feedback Events . | . . Feedback Blocked . | . . Robot Schematics Acquired . | . . Robots Built . | . . Authchips . | . . Time . | . . Total Robot Build Rating . | . . Part Schematics Acquired . | . . Parts Built . | . . Authchips . | . . Time . | . . Total Part Build Rating . | . . Part Studies Acquired . | . . Parts Repaired . | . . Time . | . . Parts Recycled . | . . Recycled Matter . | . . Retrieved Matter . | . . Retrieved Components . | . . Parts Scanalyzed . | . . Part Schematics Acquired . | . . Parts Damaged . | . . Bothacking | -11 -10 ------------ Run | Yrd Mat Used RIF Installer . | . . Robots Hacked . | . . Non-combat . | . . Combat . | . . Robot Hacks Applied . | . . Relay Couplers Released . | . . Fabnet Peak Effective % . | . . Robots Rewired . | . . Allies Hacked . | . . Hacks Repelled . | . . Allies | -11 -10 -------- Run | Yrd Mat Total Allies . | . . Largest Group . | . . Highest-Rated Group . | . . Highest-Rated Ally . | . . Total Orders . | . . Ally Attacks . | . . Total Damage . | . . Kills . | . . Allies Corrupted . | . . Allies Melted . | . . Intel | -11 -10 ------- Run | Yrd Mat Active Infowar (turns) . | . . Robot Analysis Total . | . . Derelict Logs Recovered . | . . Drone Launches . | . . Drone Recoveries . | . . Exploration | -11 -10 ------------- Run | Yrd Mat Turns Passed 524 | 39 485 Spaces Moved 355 | 32 323 Core 13 | 13 . Treads . | . . Legs . | . . Wheels 342 | 19 323 Hover . | . . Flight . | . . Fastest Speed 50 | 50 90 Average Speed 106 | 73 109 Slowest Speed 145 | 90 145 Overloaded Moves . | . . Propulsion Burnouts . | . . Robots Hopped . | . . Potential Cave-ins . | . . Cave-ins Triggered . | . . Exploration Rate (%) 24 | 4 44 Regions Visited 1 Branch Regions . Pre-discovered Areas . | . . Known Exits Taken . | . . Unknown Exits Taken 1 | 1 . Scrap Searched . | . . Spaces Dug . | . . Terrain Destroyed . | . . Melee . | . . Projectile . | . . AOE . | . . Terrain Rammed . | . . Walls Destroyed . | . . Machines Disabled . | . . Actions | -11 -10 --------- Run | Yrd Mat Total 432 | 44 388 Wait 3 | . 3 Move 354 | 31 323 Hop . | . . Pick Up 15 | 6 9 Fast Attach 2 | 2 . Attach 10 | 4 6 Detach . | . . Swap 7 | . 7 Drop 1 | . 1 Fire 40 | 1 39 Melee . | . . Ram . | . . Kick . | . . Crush . | . . Escape Stasis . | . . Rewire . | . . Trap . | . . Miscellaneous . | . . Route ------- -11/Scrapyard -10/Materials (discovered 1 exit: [*Min]) History --------- Turn | Location | Event 6 | -11/Scrapyard | Discovered new exit (range 16) 40 | -11/Scrapyard | Entered Materials 201 | -10/Materials | Discovered new exit (range 13) 312 | -10/Materials | Build established: Mutant 489 | -10/Materials | Core integrity fell below 50% 515 | -10/Materials | Core integrity fell below 20% 525 | -10/Materials | Destroyed by G-34 Mercenary with Small Laser Last Messages --------------- 00503_ U-05 Engineer builds a Wall. 00504_ T-07 Excavator is excavating. 00506_ Destroyed Aluminum Leg. 00507_ Overheating: Energy bleed (-48). 00507_ U-05 Engineer lays Concrete. 00508_ Particle Gun destroyed. 00509_ U-05 Engineer builds a Wall. 00510_ T-07 Excavator is excavating. 00512_ Lgt. Assault Rifle broken. 00512_ Overheating: Short circuit. 00513_ U-05 Engineer lays Concrete. 00514_ Overheating: Hcp. Storage Unit damaged (-307). 00514_ U-05 Engineer lays Concrete. 00515_ Lgt. Assault Rifle broken. 00515_ Overheating: Short circuit. 00516_ U-05 Engineer builds a Wall. 00516_ T-07 Excavator is excavating. 00516_ U-05 Engineer builds a Wall. 00520_ T-07 Excavator is excavating. 00520_ U-05 Engineer builds a Wall. Map ----- +----------------------------------------------------+ | | | | | ?????????????????###############???? | | ?????????????????# #???? | | ?????????????????# #???? | | ?????????????????# #???? | | ?????????????????# #???? | | ?????????????????# = #???? | | ####????????###### #???? | | [#????????# ##+############???? | | [#????????# ^ #????????????? | | ||#????????# T #????????????? | | ||#????????# ##+#######????????? | | !#????????## ## #????????? | | !!#?????????# ## #????????? | | ############## ## #????????? | | =## #????????? | | %+ #????????? | | ######### ####### #????????? | | ????????# #?????# #????????? | | ????????+ ?????# #????????? | | ????????# #?????#% #????????? | | ????????# #?????#"########????????? | | ????????# #?????# ################? | | ????????# #???###%## u#? | | ######### ##### # @ #? | | # #? | | T mg #? | | ################ # gg t ###? | | ???????????????## ## u ###??? | | ????????????????#% ############????? | | ????????????????# #???????????????? | | ????????????????# #???????????????? | | ???????????????? ??????????????? | | ??????????????? ?????????????? | | ?????????????? ????????????? | | ?????????????? +??????????? | | ????????????? #??????????? | | ???????????? " #??????????? | | "??????????! [""" #??????????? | | ???????????! =%""" ??????????? | | ?????????== ! ?????????? | | ?????????#== ???? ????????? | | ???????????### "?????##????????? | | ????????????? "???????????????? | | ??^???????^?^ ????????????????? | | ?????????^????? ????????????????? | | ^??????????????????????????????????? | | ???^???????????????????????????????? | | ???????????????????????????????????? | +----------------------------------------------------+ Best States ------------- Heat Dissipation 25 Energy Generation 10 Energy Capacity 500 Matter Stores 300 Matter Capacity 300 Sight Range 16 Terrain Scan Density 10 Additional Mass Support 6 Evasion (%) 42 Item Schematics ----------------- None Robot Schematics ------------------ None Fabricated ------------ Nothing Repaired ---------- Nothing Studied --------- None Alien Tech Used ----------------- None Achievements -------------- None Challenges ------------ None Game ------ Seed MetamassGuidedPlating Manual? 0 Play Time 00:10:02 Cumulative 4.5 hours Start 2025.10.24 @ 20:39:17 End 2025.10.24 @ 20:48:00 Sessions 1 Manual Loads 0 Difficulty Rogue Special Mode None Game No. 11 Rogue 11 Adventurer 0 Explorer 0 Win Type - Total 0 Types 0/0/0/0/0/0/0/0/0/0 Lore% 2 Gallery% 5 Achievement% 7 Wizard Run 0 Options --------- Layout 1 ASCII 0 Keyboard 0 Movement Mouse Keybinds 0 Fullscreen 1 Font 32/SmallcapsGlow Map View 77x35 Zoom Use 0% Tactical HUD 1 Map Filters NONE Filters NONE Steam 1 RUN: 5ce9b850-bacf-4df5-8b42-a2edde2882ca